bitfinex/quotes_ETHUSD_20241003
["timestamp","ask_amount","ask_price","bid_price","bid_amount"]
[1727964759173,9.24548,2366.9,2366.2,4.22605]
[1727964759375,4.22515,2366.8,2366.2,4.22605]
[1727964759576,5.02039,2366.9,2366.2,8.45213]
[1727964759750,0.7953,2366.9,2366.3,0.03719403]
[1727964760177,5.02023,2366.9,2366.3,0.03719403]
[1727964760413,5.02023,2366.9,2366.3,4.26303403]
[1727964760579,4.2253,2366.7,2366.3,0.03719403]
[1727964760761,4.22565,2366.5,2366.3,0.03719403]
[1727964761064,0.845106,2366.5,2366.4,0.03774858]
[1727964761266,4.2264,2366.1,2365.5,4.2273]
[1727964761561,0.8276,2366.0,2365.2,1.06368676]
[1727964761786,0.8276,2365.7,2364.8,4.22864]
[1727964761959,0.7621,2365.1,2364.3,4.22943]
[1727964762163,4.22841,2365.0,2364.3,4.22943]
[1727964762379,8.45686,2365.0,2364.3,4.22943]
[1727964762580,4.22841,2365.0,2364.3,0.845925]
[1727964762760,4.22841,2365.0,2364.1,4.2299]
[1727964762961,0.7621,2365.1,2363.7,0.8123]
[1727964763161,4.22855,2364.9,2364.2,4.22962]
[1727964763360,4.22843,2365.0,2364.2,8.45927]
[1727964763562,4.22843,2365.0,2364.2,9.305207]
[1727964763792,4.22843,2365.0,2364.2,5.075547]
[1727964763965,4.22843,2365.0,2364.3,4.22946]
[1727964764286,4.22843,2365.0,2364.3,4.22954]
[1727964764499,4.99028,2365.1,2364.2,4.22962]
[1727964764682,4.22833,2365.0,2364.3,4.22956]
[1727964765000,1.983936,2365.1,2364.1,4.22982]
[1727964765166,4.99042,2365.1,2364.3,4.22944]
[1727964765371,0.7621,2365.1,2364.3,4.22947]
[1727964765571,0.7621,2365.1,2364.3,4.22945]
[1727964765881,4.99034,2365.1,2364.4,4.652325]
[1727964766248,4.99034,2365.1,2364.4,0.422945]
[1727964766249,0.7621,2365.1,2364.4,0.422945]
[1727964766506,0.7621,2365.1,2363.8,9.86900763]
[1727964766507,0.7621,2365.1,2363.8,3.0]
[1727964766708,0.7621,2365.1,2364.1,4.22979]
[1727964766869,4.22859,2364.9,2364.2,4.22967]
[1727964767215,4.22859,2364.9,2364.1,4.22979]
[1727964767515,0.7621,2365.1,2364.1,4.22979]
[1727964767516,4.22887,2364.7,2364.1,4.22979]
[1727964767697,4.22861,2364.9,2363.8,4.23046]
[1727964767918,8.45722,2364.9,2364.2,4.22973]
[1727964768105,4.2287,2364.8,2364.2,4.22973]
[1727964768305,4.22851,2364.9,2364.3,4.22956]
[1727964768508,4.9904,2365.1,2364.4,4.22936]
[1727964768823,3.0,2364.9,2362.9,6.47173763]
[1727964769010,0.8172,2363.9,2363.3,4.23124]
[1727964769214,0.8172,2364.2,2363.0,4.23182]
[1727964769396,0.8172,2364.2,2362.9,4.23206]
[1727964769397,0.8172,2363.4,2362.9,4.23206]
[1727964769597,0.8172,2363.4,2362.8,4.23211]
[1727964769917,0.8172,2363.4,2363.0,4.23179]
[1727964770071,0.8172,2363.4,2362.8,0.423211]
[1727964770072,0.8172,2363.4,2363.1,4.23172]
[1727964770669,0.8172,2363.4,2363.1,4.23164]
[1727964770869,0.8172,2363.4,2363.1,4.23163]
[1727964771112,4.2304,2363.9,2362.8,0.423211]
[1727964771113,0.8159,2363.8,2363.3,4.23128]
[1727964771316,0.8159,2363.8,2362.8,0.423211]
[1727964771317,0.8159,2363.8,2363.1,4.23161]
[1727964771481,0.8159,2363.8,2363.3,4.23133]
[1727964771884,0.8159,2363.8,2363.1,0.501781]
[1727964771885,5.00659,2364.3,2363.7,4.23065]
[1727964772090,3.0,2364.2,2363.7,4.23065]
[1727964772323,0.7769,2364.3,2363.9,4.23028]
[1727964772621,0.7769,2364.8,2364.2,4.22967]
[1727964772939,0.7769,2364.8,2363.7,0.7653]
[1727964772940,4.22932,2364.5,2363.7,4.23056]
[1727964773100,4.22932,2364.5,2363.8,4.23046]
[1727964773306,4.22922,2364.6,2363.7,4.23056]
[1727964773486,4.22948,2364.4,2363.7,8.46112]
[1727964773695,0.7508,2364.3,2363.8,4.23043]
[1727964773985,0.7508,2364.6,2364.4,4.22937]
[1727964774229,0.7508,2364.6,2364.3,4.22948]
[1727964774436,0.7508,2364.6,2364.3,8.45896]
[1727964774594,0.7508,2364.6,2364.4,4.22932]
[1727964775116,0.7508,2364.6,2364.5,4.22922]
[1727964775318,0.7897,2365.0,2364.4,4.22936]
[1727964775519,0.7897,2365.0,2364.6,4.22903]
[1727964775834,0.7897,2365.0,2364.5,4.22919]
[1727964776330,0.7897,2365.0,2364.5,5.1596256]
[1727964776940,0.7897,2365.0,2364.6,4.22902]
[1727964777102,0.7897,2365.0,2364.7,4.22876]
[1727964777307,0.7897,2365.0,2364.7,4.22872]
[1727964777502,0.7897,2365.0,2364.4,4.22927]
[1727964777723,5.01807,2365.0,2364.4,4.22927]
[1727964777903,0.7897,2365.0,2364.4,8.45859]
[1727964778239,0.7897,2365.0,2363.8,0.7911]
[1727964778240,0.7897,2365.0,2363.8,5.0215]
[1727964778438,0.7897,2365.0,2364.5,4.22917]
[1727964778603,0.7897,2365.0,2364.1,4.22983]
[1727964778804,0.7897,2365.0,2364.4,4.22931]
[1727964779006,4.22913,2364.6,2364.0,8.45997]
[1727964779189,0.8328,2364.5,2364.1,4.22986]
[1727964779393,0.8328,2364.5,2364.0,4.22997]
[1727964779696,0.8328,2364.5,2364.2,4.22973]
[1727964779891,0.8328,2364.5,2364.3,4.22954]
[1727964780133,0.8328,2364.5,2364.4,4.2294]
[1727964780627,3.8328,2365.0,2363.2,7.36501831]
[1727964780829,5.04149,2364.3,2363.7,4.23065]
[1727964780991,4.23004,2364.1,2363.4,4.23111]
[1727964781320,4.2303,2363.9,2363.3,8.46252]
[1727964781506,4.2303,2363.9,2363.3,4.23129]
[1727964781710,0.8119,2363.8,2363.3,4.23129]
[1727964782048,4.22981,2364.2,2363.5,4.231]
[1727964782212,0.8119,2365.8,2364.9,4.22846]
[1727964782420,0.8119,2365.8,2364.9,4.31262462]
[1727964782728,0.8119,2365.8,2364.9,4.22836]
[1727964782945,0.8119,2365.8,2365.0,4.22829]
[1727964783227,0.8119,2365.8,2364.4,0.6984]
[1727964783228,0.8119,2365.8,2364.6,4.22893]
[1727964783398,0.8119,2365.8,2365.4,4.22757]
[1727964783601,0.8119,2365.8,2365.3,4.22771]
[1727964783923,0.8119,2365.8,2365.4,4.22761]
[1727964784446,1.30505272,2365.7,2365.3,4.22777]
[1727964784592,0.8119,2365.8,2365.2,4.22784]
[1727964784798,0.8119,2365.8,2365.0,4.22827]
[1727964784799,0.8119,2365.8,2364.8,4.22865]
[1727964785140,0.8119,2365.8,2364.4,0.6984]
[1727964785345,1.04396606,2365.7,2364.5,4.22918]
[1727964785548,0.8114,2365.6,2364.6,4.22904]
[1727964785750,0.8114,2365.6,2365.2,4.22779]
[1727964785899,0.8114,2365.6,2365.0,4.22832]
[1727964786206,0.8114,2365.6,2365.1,4.22813]
[1727964786533,0.8114,2365.6,2365.2,4.22795]
[1727964786942,0.8114,2365.6,2364.9,4.2285]
[1727964787738,0.8114,2365.6,2365.1,4.228]
[1727964787946,0.8114,2365.6,2365.2,4.22796]
[1727964788147,0.39149137,2365.6,2364.7,0.8306]
[1727964788344,0.87731119,2366.1,2365.6,4.22717]
[1727964788499,0.87731119,2366.3,2365.6,4.22717]
[1727964788700,0.87731119,2366.4,2365.6,4.22717]
[1727964788904,0.87731119,2366.4,2365.2,4.22787]
[1727964788905,0.87731119,2366.4,2365.9,4.22668]
[1727964789107,1.09739476,2366.3,2365.5,4.22731]
[1727964789320,0.22008357,2366.3,2365.5,4.22731]
[1727964789521,1.09739476,2366.3,2365.4,4.2275]
[1727964789747,0.66909847,2366.2,2365.2,4.22789]
[1727964789951,1.54640966,2366.2,2365.2,4.22789]
[1727964790157,1.18631296,2366.1,2365.0,4.22831]
[1727964790354,0.87731119,2366.0,2365.4,4.2275]
[1727964790664,0.87731119,2366.0,2365.0,4.22817]
[1727964790665,10.06594882,2366.0,2365.0,4.22817]
[1727964790953,3.55,2365.8,2365.1,4.22811]
[1727964791159,0.7742,2365.7,2365.2,4.22796]
[1727964791315,0.7742,2365.7,2365.4,4.2276]
[1727964791512,0.7742,2365.7,2364.2,5.63863763]
[1727964791513,0.7742,2365.7,2365.6,4.22725]
[1727964791755,0.87731119,2366.1,2366.0,4.22654]
[1727964791929,0.8074,2366.2,2366.1,4.22636]
[1727964792336,0.87731119,2366.4,2366.2,4.22618]
[1727964792529,0.87731119,2366.4,2366.3,4.226]
[1727964793020,0.87731119,2366.4,2365.6,5.072696]
[1727964793021,0.47794759,2366.4,2365.2,4.22796]
[1727964793223,0.87731119,2366.1,2365.8,8.4536]
[1727964793451,0.87731119,2366.1,2366.0,4.22654]
[1727964793654,1.32352447,2366.1,2366.0,4.22654]
[1727964794360,1.74724027,2366.2,2366.1,4.22636]
[1727964794661,2.20925738,2366.2,2366.1,4.22636]
[1727964794961,3.92436033,2366.6,2365.9,4.22658]
[1727964794962,2.65110886,2366.3,2365.9,4.22658]
[1727964795172,2.21049267,2366.0,2364.9,0.7853]
[1727964795318,3.42750886,2366.2,2365.4,4.22761]
[1727964795319,0.88428701,2365.5,2365.4,4.22761]
[1727964795663,0.88428701,2365.6,2365.5,5.04723]
[1727964795833,1.32643052,2365.6,2365.2,4.22784]
[1727964796036,1.32643052,2365.3,2365.1,4.22814]
[1727964796248,2.21101938,2365.2,2365.1,4.22814]
[1727964796459,1.32643052,2365.2,2364.9,4.2285]
[1727964796670,0.88460857,2365.1,2365.0,4.22832]
[1727964796966,1.63798805,2365.1,2364.5,4.22922]
[1727964797119,3.88454891,2365.0,2364.1,4.22983]
[1727964797320,0.88454891,2364.7,2364.1,4.22983]
[1727964797520,1.71394891,2364.6,2364.3,4.22953]
[1727964797715,1.71394891,2364.6,2363.9,4.2302]
[1727964797959,1.13343794,2364.6,2363.9,4.2302]
[1727964798527,4.13343794,2364.6,2364.1,4.22979]
[1727964798722,1.71394891,2364.6,2363.8,4.23043]
[1727964798929,0.8329,2364.5,2363.4,4.23106]
[1727964799139,0.7565,2364.1,2363.2,4.23143]
[1727964799367,3.7565,2364.1,2363.3,4.23133]
[1727964799521,0.93951376,2364.0,2363.0,4.23177]
[1727964800336,1.3065,2363.9,2362.8,5.09534034]
[1727964800667,0.93951376,2364.0,2362.6,0.86319034]
[1727964800668,4.3573,2363.3,2362.6,0.86319034]
[1727964800959,3.0,2362.8,2362.2,0.86319034]
[1727964801172,3.0,2362.8,2362.1,0.86319034]
[1727964801477,1.3573,2363.0,2361.9,0.86319034]
[1727964801478,3.7674,2362.3,2361.9,0.86319034]
[1727964801760,8.18863763,2363.0,2361.4,2.27352775]
[1727964801761,4.3174,2361.8,2361.4,2.27352775]
[1727964801961,7.78459,2361.5,2361.4,0.1155519]
[1727964802166,8.55199,2361.5,2361.4,0.1155519]
[1727964802348,4.3174,2361.5,2361.4,0.1155519]
[1727964802560,0.7674,2361.5,2361.4,0.1155519]
[1727964804229,0.8218,2362.0,2361.4,0.1155519]
[1727964804433,0.8218,2362.0,2361.5,4.23455]
[1727964804873,0.8218,2362.0,2361.5,4.23458]
[1727964805031,0.8218,2362.0,2361.4,5.21340224]
[1727964805227,0.8218,2362.0,2361.5,0.86319034]
[1727964805433,0.8218,2362.0,2361.7,0.86319034]
[1727964806170,0.8218,2362.0,2361.6,1.29478551]
[1727964806171,0.8143,2362.2,2361.5,5.09766034]
[1727964806375,0.8143,2362.2,2361.6,5.09759034]
[1727964806582,0.7605,2362.7,2362.1,4.23336]
[1727964806794,0.7605,2362.7,2362.2,0.423336]
[1727964806938,0.7605,2362.7,2361.9,0.86319034]
[1727964807260,4.23281,2362.5,2361.9,0.86319034]
[1727964807429,8.46548,2362.6,2361.8,0.86319034]
[1727964807636,0.922598,2362.5,2361.7,0.86319034]
[1727964807935,0.7605,2362.7,2361.8,0.86319034]
[1727964808165,0.7605,2362.7,2361.9,5.09698034]
[1727964808344,0.7605,2362.7,2361.9,4.23376]
[1727964808674,0.7605,2362.7,2361.7,5.52893551]
[1727964808675,0.7605,2362.7,2362.1,4.23351]
[1727964808885,0.7605,2362.7,2362.2,4.6651479]
[1727964809085,0.7605,2362.7,2362.2,0.4318179]
[1727964809373,0.7605,2362.7,2361.7,5.52894551]
[1727964809374,0.7605,2362.7,2361.7,0.86319034]
[1727964809682,0.7605,2362.7,2361.4,1.84193258]
[1727964809683,3.0,2361.8,2361.6,0.86319034]
[1727964809900,3.0,2361.8,2361.5,0.86319034]
[1727964810168,0.7815,2362.3,2361.5,0.86319034]
[1727964810169,3.0,2362.2,2361.6,0.86319034]
[1727964810356,0.7815,2362.3,2361.6,0.86319034]
[1727964810357,3.0,2362.0,2361.7,0.86319034]
[1727964810579,3.0,2362.0,2361.6,1.29478551]
[1727964810580,3.0,2362.0,2361.6,0.86319034]
[1727964810784,3.0,2362.2,2361.6,0.86319034]
[1727964810965,3.0,2362.0,2361.5,0.86319034]
[1727964811133,0.7815,2362.3,2361.4,0.97874224]
[1727964811340,3.0,2362.2,2361.5,0.86319034]
[1727964811534,7.23339,2362.2,2361.4,0.97874224]
[1727964811891,0.7845,2361.7,2361.4,0.1155519]
[1727964812194,5.01885,2361.7,2361.4,0.97874224]
[1727964812484,7.78459,2361.5,2361.4,1.41033741]
[1727964812701,8.57649,2361.5,2361.4,0.9910993]
[1727964813290,3.7919,2361.5,2361.4,0.1155519]
[1727964813493,8.02649,2361.5,2361.4,0.1155519]
[1727964813702,8.57649,2361.5,2361.4,0.1155519]
[1727964814273,15.9465,2361.5,2361.4,0.1155519]
[1727964814685,5.06906,2360.6,2360.5,2.18851181]
[1727964814866,5.06906,2360.6,2360.4,1.75116101]
[1727964814867,3.8327,2360.6,2360.4,1.75116101]
[1727964815062,3.0,2360.8,2360.5,1.31378991]
[1727964815296,3.0,2360.8,2360.6,0.87542319]
[1727964815622,3.8327,2361.0,2360.4,0.87542319]
[1727964815799,3.8327,2361.0,2360.3,5.11205319]
[1727964816093,4.23587,2360.8,2360.4,0.87542319]
[1727964816305,0.8327,2361.0,2360.2,4.23683]
[1727964816306,5.06823,2361.0,2360.2,4.23683]
[1727964816513,9.30384,2361.0,2360.3,0.51122532]
[1727964816656,3.0,2361.3,2360.7,4.23599]
[1727964816867,5.02274,2361.4,2360.4,5.04344]
[1727964816868,3.7879,2361.4,2360.4,5.04344]
[1727964817061,0.7879,2361.4,2360.7,4.23601]
[1727964817404,0.7879,2361.4,2360.7,0.423601]
[1727964817405,4.23542,2361.1,2360.7,0.423601]
[1727964817718,0.7879,2361.4,2360.1,5.0042]
[1727964817719,4.23584,2360.9,2360.1,5.0042]
[1727964817864,4.23584,2360.9,2360.2,4.23676]
[1727964818187,3.0,2360.6,2359.9,4.23734]
[1727964818391,0.7857,2360.8,2359.5,0.7672]
[1727964818566,4.2364,2360.5,2359.8,4.23748]
[1727964818766,3.0,2360.0,2359.5,0.7672]
[1727964819078,0.7857,2360.8,2359.1,0.1155519]
[1727964819079,0.8239,2359.2,2359.1,0.1155519]
[1727964819261,8.06262,2359.2,2359.1,0.1155519]
[1727964819669,3.8239,2359.2,2359.1,0.1155519]
[1727964819914,8.868867,2359.2,2359.1,0.1155519]
[1727964820275,9.418867,2359.2,2359.1,0.1155519]
[1727964820478,8.06262,2359.2,2359.1,0.1155519]
[1727964820783,3.0,2359.4,2359.1,0.1155519]
[1727964821000,5.04651,2360.0,2359.1,0.1155519]
[1727964821315,4.2376,2359.9,2359.1,0.1155519]
[1727964821611,4.23703,2360.2,2359.2,0.8121]
[1727964821772,0.925509,2360.2,2359.2,1.32877019]
[1727964822110,4.23736,2360.0,2359.1,0.1155519]
[1727964822419,4.2373,2360.0,2359.1,0.1155519]
[1727964822574,4.23783,2359.7,2359.1,0.1155519]
[1727964822775,4.23766,2359.8,2359.1,0.1155519]
[1727964822776,3.0,2359.9,2359.1,0.1155519]
[1727964822974,3.0,2359.9,2359.2,4.23863]
[1727964823199,4.23705,2360.2,2359.1,4.3543319]
[1727964823200,0.7814,2360.3,2359.1,0.1155519]
[1727964823383,3.0,2359.6,2359.1,0.1155519]
[1727964823719,4.23821,2359.5,2359.1,0.1155519]
[1727964823874,4.23872,2359.2,2359.1,0.1155519]
[1727964824075,7.23872,2359.2,2359.1,0.1155519]
[1727964824275,3.0,2359.2,2359.1,0.1155519]
[1727964824512,5.02697,2359.5,2359.1,0.1155519]
[1727964824513,3.0,2359.4,2359.1,0.1155519]
[1727964824824,4.23865,2359.3,2359.1,0.1155519]
[1727964824987,3.0,2359.2,2359.1,0.1155519]
[1727964825188,7.662585,2359.2,2359.1,0.1155519]
[1727964825425,3.0,2359.2,2359.1,0.1155519]
[1727964825709,3.0,2359.4,2359.1,0.1155519]
[1727964825913,3.0,2359.2,2359.1,0.1155519]
[1727964826270,7.23858,2359.3,2359.1,0.1155519]
[1727964826510,3.0,2359.4,2359.1,0.1155519]
[1727964826689,3.0,2359.5,2359.1,0.1155519]
[1727964826874,7.23872,2359.2,2359.1,0.1155519]
[1727964827185,3.0,2359.4,2359.1,0.1155519]
[1727964827400,4.23857,2359.3,2359.1,0.1155519]
[1727964827713,3.0,2359.6,2359.1,0.1155519]
[1727964827925,0.7867,2359.8,2359.1,0.9292519]
[1727964828077,4.23794,2359.7,2359.1,0.9292519]
[1727964828276,0.7867,2359.8,2359.1,0.9292519]
[1727964828277,4.23773,2359.8,2359.1,5.1680419]
[1727964828471,4.23792,2359.7,2359.1,5.68484609]
[1727964828686,0.8138,2360.1,2359.1,0.1155519]
[1727964828687,5.05091,2360.1,2359.1,0.1155519]
[1727964828910,4.2378,2359.8,2359.1,4.3544419]
[1727964829118,0.8138,2360.1,2359.2,0.7528]
[1727964829416,6.45933763,2360.6,2359.2,0.7528]
[1727964829613,4.23751,2359.9,2359.2,1.26351919]
[1727964829824,4.23709,2360.2,2359.2,1.26351919]
[1727964829979,4.23709,2360.2,2359.6,4.23798]
[1727964830175,4.23709,2360.2,2359.2,0.7528]
[1727964830176,6.45933763,2360.6,2359.3,4.23845]
[1727964830486,4.23801,2359.6,2359.2,0.66018431]
[1727964830797,3.0,2359.6,2359.1,0.1155519]
[1727964831004,3.0,2359.8,2359.1,0.1155519]
[1727964831215,3.0,2359.8,2359.2,4.23862]
[1727964831591,3.0,2359.8,2359.3,4.23849]
[1727964831811,3.0,2360.0,2359.4,4.23823]
[1727964831995,8.47373,2360.3,2359.6,4.23788]
[1727964832310,8.47374,2360.3,2359.6,5.09137334]
[1727964832618,8.47369,2360.3,2359.6,5.09137334]
[1727964832822,0.7572,2360.1,2359.1,0.1155519]
[1727964833023,4.23872,2359.2,2359.1,0.1155519]
[1727964833376,3.0,2359.2,2359.1,0.1155519]
[1727964833577,4.2383,2359.5,2359.1,0.1155519]
[1727964833776,3.0,2359.5,2359.1,0.1155519]
[1727964833986,4.23819,2359.5,2359.1,0.1155519]
[1727964834190,7.23797,2359.7,2359.1,4.3544219]
[1727964834191,3.0,2359.7,2359.1,4.3544219]
[1727964834420,4.23804,2359.6,2359.2,0.44063752]
[1727964834633,3.0,2359.8,2359.2,0.44063752]
[1727964834826,4.23811,2359.6,2359.1,0.1155519]
[1727964834994,4.23872,2359.2,2359.1,0.1155519]
[1727964835174,4.23831,2359.5,2359.1,0.1155519]
[1727964835523,0.8297,2360.1,2359.1,0.1155519]
[1727964835524,4.23872,2359.2,2359.1,0.1155519]
[1727964835881,7.23872,2359.2,2359.1,0.1155519]
[1727964836075,7.23872,2359.2,2357.9,4.24093]
[1727964836076,4.3447,2359.2,2357.9,0.8173]
[1727964836278,3.0,2358.1,2356.9,0.8173]
[1727964836478,0.7947,2358.5,2356.9,0.8173]
[1727964836479,4.24125,2357.8,2357.3,4.24201]
[1727964836720,3.0,2358.2,2356.8,4.3585719]
[1727964836721,7.24063,2358.2,2357.5,4.24178]
[1727964836877,0.7947,2358.5,2357.6,5.01901]
[1727964837096,0.7947,2358.5,2356.9,0.7775]
[1727964837097,4.24082,2358.1,2356.9,0.7775]
[1727964837404,3.0,2357.9,2357.3,4.24203]
[1727964837603,3.0,2357.9,2357.4,4.24185]
[1727964837944,4.24099,2358.0,2356.9,5.02034]
[1727964837945,3.0,2358.0,2357.2,4.24229]
[1727964838078,3.0,2358.0,2357.4,4.24193]
[1727964838274,3.0,2358.0,2357.4,4.24186]
[1727964838476,3.0,2358.0,2357.4,8.48371]
[1727964838722,3.0,2358.0,2357.5,4.24169]
[1727964838998,3.0,2358.0,2357.3,4.24212]
[1727964839196,3.0,2358.0,2356.9,0.7775]
[1727964839197,3.0,2357.5,2356.9,0.7775]
[1727964839420,4.24175,2357.6,2356.9,0.7775]
[1727964839421,4.24207,2357.4,2356.9,0.7775]
[1727964839729,4.24207,2357.4,2356.8,0.1155519]
[1727964839730,3.0,2357.3,2356.8,0.1155519]
[1727964839931,3.0,2356.9,2356.8,0.1155519]
[1727964840432,7.24286,2356.9,2356.8,0.1155519]
[1727964841590,7.79286,2356.9,2356.8,0.1155519]
[1727964841936,7.24286,2356.9,2356.8,0.1155519]
[1727964842140,3.0,2356.9,2356.8,0.1155519]
[1727964842338,0.8061,2357.1,2356.8,0.1155519]
[1727964842630,4.24037,2358.3,2356.8,0.1155519]
[1727964842631,4.24286,2356.9,2356.8,0.1155519]
[1727964842782,4.24269,2357.0,2356.8,0.1155519]
[1727964842983,4.24252,2357.1,2356.8,0.1155519]
[1727964843183,4.24237,2357.2,2356.8,0.1155519]
[1727964843426,4.24286,2356.9,2356.8,0.1155519]
[1727964843738,4.24262,2357.1,2356.8,0.1155519]
[1727964843949,4.24268,2357.0,2356.8,0.1155519]
[1727964844236,4.24286,2356.9,2356.8,0.1155519]
[1727964844419,5.06176,2356.9,2356.8,0.1155519]
[1727964844600,8.61176,2356.9,2356.8,0.1155519]
[1727964844935,17.14875799,2356.9,2356.8,0.1155519]
[1727964845091,4.24383,2356.4,2355.1,4.24596]
[1727964845298,8.56935,2356.8,2354.4,0.1155519]
[1727964845299,3.0,2355.8,2354.4,0.1155519]
[1727964845528,3.0,2355.8,2354.5,0.08492355]
[1727964845529,3.0,2355.6,2354.5,0.08492355]
[1727964845751,4.24514,2355.7,2354.4,0.1155519]
[1727964845752,4.24549,2355.5,2354.4,0.1155519]
[1727964845933,3.7531,2355.9,2354.4,0.1155519]
[1727964845934,4.24531,2355.6,2354.7,4.24668]
[1727964846269,4.24531,2355.6,2354.4,0.1155519]
[1727964846270,4.24665,2354.8,2354.4,0.1155519]
[1727964846434,4.24635,2355.0,2354.4,0.1155519]
[1727964846435,3.0,2354.9,2354.4,0.1155519]
[1727964846618,7.24662,2354.9,2354.4,0.1155519]
[1727964846817,3.0,2354.9,2354.4,0.1155519]
[1727964847015,4.24692,2354.7,2354.4,0.1155519]
[1727964847259,3.0,2354.6,2354.4,0.1155519]
[1727964847459,0.8147,2354.8,2354.4,0.1155519]
[1727964847460,3.8147,2354.8,2354.4,0.1155519]
[1727964847764,7.24718,2354.5,2354.4,0.1155519]
[1727964848170,3.0,2354.5,2354.4,0.1155519]
[1727964848472,7.971891,2354.5,2354.4,0.1155519]
[1727964848774,9.325991,2354.5,2354.4,0.1155519]
[1727964848921,9.325991,2354.5,2352.9,0.753]
[1727964848922,4.24924,2353.4,2352.9,0.753]
[1727964849269,3.0,2353.6,2352.8,4.25014]
[1727964849417,9.88657763,2354.1,2353.4,4.24916]
[1727964849418,0.8041,2354.1,2353.4,4.24916]
[1727964849614,3.0,2354.4,2353.5,0.07884482]
[1727964849818,3.0,2354.4,2353.6,4.2488]
[1727964850075,5.63863763,2354.9,2353.7,0.753]
[1727964850076,0.8041,2354.9,2353.7,0.753]
[1727964850366,4.24691,2354.7,2353.1,5.0026]
[1727964850513,4.24691,2354.7,2353.1,0.753]
[1727964850514,0.8041,2354.2,2353.1,0.753]
[1727964850856,4.24863,2353.7,2353.1,0.753]
[1727964851066,4.24863,2353.7,2352.2,5.63863763]
[1727964851067,0.8041,2353.5,2352.3,5.00406]
[1727964851371,0.8041,2353.5,2351.9,4.25185]
[1727964851372,4.25027,2352.8,2351.9,4.25185]
[1727964851523,4.25027,2352.8,2351.8,0.753]
[1727964851524,5.05437,2352.8,2351.8,0.753]
[1727964851866,3.0,2353.0,2352.1,4.3670519]
[1727964852073,3.8041,2353.2,2352.2,4.68799519]
[1727964852074,8.05373,2353.2,2352.2,4.68799519]
[1727964852223,3.0,2353.0,2352.3,4.25113]
[1727964852562,3.8041,2353.2,2352.2,0.43670519]
[1727964852746,3.8041,2353.2,2352.1,4.3669519]
[1727964852747,3.0,2352.7,2352.1,0.1155519]
[1727964853303,3.0,2353.1,2352.3,4.25102]
[1727964853420,0.8041,2353.2,2352.1,0.1155519]
[1727964853775,3.0,2352.7,2352.1,0.1155519]
[1727964853922,7.25133,2352.2,2352.1,0.1155519]
[1727964854261,32.5403,2352.2,2352.1,0.1155519]
[1727964854420,30.5403,2352.2,2352.1,0.1155519]
[1727964854636,18.453863,2352.2,2352.1,0.1155519]
[1727964854876,3.7727,2352.2,2352.1,0.1155519]
[1727964855057,3.814,2352.6,2352.1,0.1155519]
[1727964855266,0.814,2353.0,2352.1,4.3669519]
[1727964855471,5.06391,2353.0,2352.1,4.3669419]
[1727964855773,4.25092,2352.5,2352.2,0.03861773]
[1727964855932,4.25054,2352.7,2352.2,0.03861773]
[1727964856136,0.814,2353.0,2352.2,0.03861773]
[1727964856373,4.25068,2352.6,2352.2,0.03861773]
[1727964856583,3.0,2352.7,2352.2,0.03861773]
[1727964856731,3.0,2352.5,2352.1,0.1155519]
[1727964856936,0.814,2353.0,2352.1,0.1155519]
[1727964856937,0.57380068,2352.8,2352.3,0.04421936]
[1727964857151,0.57380068,2352.8,2352.2,0.04415334]
[1727964857152,4.25115,2352.3,2352.2,0.04415334]
[1727964857458,7.25133,2352.2,2352.1,0.1155519]
[1727964857772,3.0,2352.2,2352.1,0.1155519]
[1727964857952,3.0,2352.4,2352.1,0.1155519]
[1727964858156,4.24983,2353.1,2352.2,0.7553]
[1727964858359,0.8241,2353.6,2352.4,4.25094]
[1727964858655,0.8241,2353.6,2352.2,0.79960897]
[1727964858656,4.24945,2353.3,2352.5,0.425094]
[1727964858856,4.25001,2353.0,2352.5,0.04429953]
[1727964859055,4.25001,2353.0,2352.2,0.7553]
[1727964859251,4.25062,2352.6,2352.3,0.04408734]
[1727964859495,4.25079,2352.5,2352.3,0.04408734]
[1727964859693,4.25111,2352.4,2352.1,0.1155519]
[1727964859850,0.7858,2352.7,2352.1,0.1155519]
[1727964859851,4.2508,2352.5,2352.1,0.1155519]
[1727964860056,7.25118,2352.3,2352.1,0.1155519]
[1727964860358,7.25133,2352.2,2352.1,0.1155519]
[1727964860556,8.401581,2352.2,2352.1,0.1155519]
[1727964861090,4.25107,2352.4,2352.1,0.1155519]
[1727964861253,3.0,2352.6,2352.1,0.1155519]
[1727964861449,3.0,2352.8,2352.1,0.1155519]
[1727964861664,5.00763,2353.1,2352.2,0.08501469]
[1727964861884,5.00763,2353.1,2352.2,0.8112]
[1727964861885,4.2498,2353.1,2352.2,0.8112]
[1727964862092,0.7824,2353.5,2352.5,4.25078]
[1727964862288,4.24893,2353.6,2352.3,0.55]
[1727964862289,4.24893,2353.6,2352.8,0.8112]
[1727964862495,4.24893,2353.6,2352.8,0.87526385]
[1727964862857,4.24854,2353.8,2352.8,0.87526385]
[1727964863167,0.7995,2353.9,2352.8,0.8112]
[1727964863352,4.24881,2353.6,2352.8,0.8112]
[1727964863555,0.7995,2353.9,2352.9,0.55]
[1727964863556,4.2485,2353.8,2352.9,0.55]
[1727964863913,0.57380068,2354.2,2352.9,0.55]
[1727964863914,4.24785,2354.2,2353.2,4.24935]
[1727964864056,4.2481,2354.0,2353.2,4.24935]
[1727964864613,4.24827,2353.9,2353.2,0.7642]
[1727964864822,4.24827,2353.9,2353.3,0.501379]
[1727964865008,4.24788,2354.2,2353.2,0.7642]
[1727964865188,10.70769763,2354.5,2353.2,0.7642]
[1727964865189,4.24826,2353.9,2353.2,0.7642]
[1727964865512,4.24776,2354.2,2353.3,4.750701]
[1727964865717,4.24812,2354.0,2353.3,0.501381]